fUST/lending_fUST_20241220
["ID","MTS","AMOUNT","RATE_DAILY","PERIOD"]
[346041993,1734653449341,-151.0,0.00021917,2]
[346041994,1734653449351,-151.0,0.00021917,2]
[346041995,1734653449360,-500.0,0.00021917,6]
[346041996,1734653449370,-151.0,0.00021917,2]
[346041997,1734653449379,-500.0,0.00021917,6]
[346041998,1734653449389,-500.0,0.00021917,6]
[346041999,1734653449398,-1924.41,0.00021917,6]
[346042000,1734653449408,-165.006347,0.00021917,2]
[346042001,1734653449417,-165.006347,0.00021917,2]
[346042002,1734653449426,-500.0,0.00021917,6]
[346042003,1734653449435,-165.006347,0.00021917,2]
[346042004,1734653449445,-165.006347,0.00021917,2]
[346042005,1734653449454,-165.006347,0.00021917,2]
[346042006,1734653449464,-165.006347,0.00021917,2]
[346042007,1734653449476,-165.006347,0.00021917,2]
[346042008,1734653449486,-165.006347,0.00021917,2]
[346042009,1734653449495,-165.006347,0.00021917,2]
[346042010,1734653449504,-165.006347,0.00021917,2]
[346042011,1734653449514,-165.006347,0.00021917,2]
[346042012,1734653449523,-165.006347,0.00021917,2]
[346042013,1734653449539,-165.006347,0.00021917,2]
[346042014,1734653449549,-165.006347,0.00021917,2]
[346042015,1734653449558,-165.006347,0.00021917,2]
[346042016,1734653449568,-165.006347,0.00021917,2]
[346042017,1734653449577,-165.006347,0.00021917,2]
[346042018,1734653449586,-500.0,0.00021917,6]
[346042019,1734653449595,-165.006347,0.00021917,2]
[346042020,1734653449604,-165.006347,0.00021917,2]
[346042021,1734653449614,-165.006351,0.00021917,2]
[346042022,1734653449623,-1971.69,0.00021917,6]
[346042023,1734653449632,-500.0,0.00021917,6]
[346042024,1734653449641,-500.0,0.00021917,6]
[346042025,1734653449651,-503.52050645,0.00021917,6]
[346042026,1734653449660,-500.0,0.00021917,6]
[346042027,1734653449670,-1417.22,0.00021917,6]
[346042028,1734653449679,-500.0,0.00021917,6]
[346042029,1734653449689,-500.0,0.00021917,6]
[346042030,1734653449698,-1465.85,0.00021917,6]
[346042031,1734653449707,-150.0,0.00021917,6]
[346042032,1734653449717,-500.0,0.00021917,6]
[346042033,1734653449726,-530.53503891,0.00021917,6]
[346042034,1734653449734,-355.17335683,0.00021917,6]
[346042035,1734653993460,168.06468,0.00013973,2]
[346042076,1734654636826,-477.9475,0.00018439,2]
[346042077,1734654636849,-132.662268,0.00018439,2]
[346042078,1734654636861,-154.98450155,0.00018439,2]
[346042079,1734654636871,-155.98440156,0.00019361,2]
[346042080,1734654636880,-300.0,0.00019613,2]
[346042081,1734654636889,-24900.0,0.00019614,2]
[346042082,1734654636898,-1139.6244399,0.00019752,2]
[346042083,1734654636909,-502.09,0.0002,4]
[346042084,1734654636918,-153.31697888,0.0002,2]
[346042085,1734654636928,-169.202726,0.00020278,2]
[346042086,1734654636939,-183.80831008,0.00020283,2]
[346042087,1734654636949,-179.8680009,0.000207,2]
[346042088,1734654636958,-367.82491185,0.000207,2]
[346042089,1734654636967,-357.16102832,0.000208,2]
[346042090,1734654636978,-2423.6648492,0.00020891,2]
[346042091,1734654636988,-638.258,0.000209,2]
[346042092,1734654636998,-175.704,0.00020942,2]
[346042093,1734654637007,-14596.0,0.00021,2]
[346042094,1734654637016,-207.73681425,0.00021,2]
[346042095,1734654637024,-3000.0,0.00021,2]
[346042096,1734654637034,-153.2604004,0.00021078,2]
[346042097,1734654637044,-213.9640091,0.00021078,2]
[346042098,1734654637057,-162.724558,0.00021128,2]
[346042099,1734654637066,-357.16102832,0.00021141,2]
[346042100,1734654637075,-351.9620625,0.00021141,2]
[346042101,1734654637084,-420.0,0.00021365,2]
[346042102,1734654637093,-642.37959287,0.00021384,2]
[346042103,1734654637102,-357.16102832,0.00021482,2]
[346042104,1734654637112,-5265.90360997,0.00021576,2]
[346042105,1734654637121,-2000.0,0.000216,2]
[346042106,1734654637130,-166.0,0.00021724,2]
[346042107,1734654637140,-167.99,0.00021724,2]
[346042108,1734654637148,-162.0,0.00021724,2]
[346042109,1734654637158,-162.0,0.00021724,2]
[346042110,1734654637167,-162.0,0.00021724,2]
[346042111,1734654637176,-162.0,0.00021724,2]
[346042112,1734654637187,-162.0,0.00021724,2]
[346042113,1734654637197,-162.0,0.00021724,2]
[346042114,1734654637205,-162.0,0.00021724,2]
[346042115,1734654637215,-162.0,0.00021724,2]
[346042116,1734654637224,-162.0,0.00021724,2]
[346042117,1734654637233,-162.0,0.00021724,2]
[346042118,1734654637241,-162.0,0.00021724,2]
[346042119,1734654637251,-167.32,0.00021724,2]
[346042120,1734654637260,-294.4311769,0.00021779,2]
[346042121,1734654637269,-666.0,0.00021817,2]
[346042122,1734654637279,-244.70279626,0.00021817,2]
[346042123,1734654637288,-357.16102832,0.00021823,2]
[346042124,1734654637297,-7295.11177442,0.00021865,2]
[346042125,1734654637309,-7922.92856555,0.00021873,2]
[346042126,1734654637318,-3982.7262536,0.0002188,2]
[346042127,1734654637326,-3063.70292704,0.000219,2]
[346042128,1734654637335,-500.0,0.00021908,2]
[346042129,1734654637344,-500.0,0.00021908,2]
[346042130,1734654637353,-500.0,0.00021908,2]
[346042131,1734654637362,-500.0,0.00021908,2]
[346042132,1734654637371,-388.26471083,0.00021908,2]
[346042187,1734654638687,-236.4222114,0.00021908,2]
[346042189,1734654638696,-500.0,0.00021908,2]
[346042191,1734654638706,-500.0,0.00021908,2]
[346042193,1734654638715,-500.0,0.00021908,2]
[346042195,1734654638724,-500.0,0.00021908,2]
[346042197,1734654638733,-500.0,0.00021908,2]
[346042199,1734654638742,-500.0,0.00021908,2]
[346042201,1734654638751,-500.0,0.00021908,2]
[346042203,1734654638761,-500.0,0.00021908,2]
[346042205,1734654638770,-500.0,0.00021908,2]
[346042208,1734654638779,-500.0,0.00021908,2]
[346042211,1734654638789,-500.0,0.00021908,2]
[346042213,1734654638798,-400.0,0.00021908,2]
[346042217,1734654638811,-500.0,0.00021908,2]
[346042219,1734654638821,-585.56903727,0.00021908,2]
[346042222,1734654638830,-500.0,0.00021908,2]
[346042225,1734654638839,-500.0,0.00021908,2]
[346042228,1734654638849,-500.0,0.00021908,2]
[346042230,1734654638858,-500.0,0.00021908,2]
[346042232,1734654638871,-500.0,0.00021908,2]
[346042234,1734654638880,-453.828118,0.00021908,2]
[346042236,1734654638892,-46.171882,0.00021908,2]
[346042238,1734654638902,-500.0,0.00021908,2]
[346042240,1734654638911,-500.0,0.00021908,2]
[346042242,1734654638920,-500.0,0.00021908,2]
[346042244,1734654638929,-500.0,0.00021908,2]
[346042246,1734654638940,-500.0,0.00021908,2]
[346042248,1734654638949,-500.0,0.00021908,2]
[346042250,1734654638959,-500.0,0.00021908,2]
[346042251,1734654638968,-500.0,0.00021908,2]
[346042253,1734654638977,-500.0,0.00021908,2]
[346042256,1734654638987,-500.0,0.00021908,2]
[346042257,1734654638996,-500.0,0.00021908,2]
[346042260,1734654639006,-500.0,0.00021908,2]
[346042262,1734654639015,-500.0,0.00021908,2]
[346042264,1734654639025,-174.53614425,0.00021908,2]
[346042266,1734654639034,-500.0,0.00021908,2]
[346042268,1734654639044,-500.0,0.00021908,2]
[346042270,1734654639057,-500.0,0.00021908,2]
[346042272,1734654639067,-500.0,0.00021908,2]
[346042273,1734654639076,-500.0,0.00021908,2]
[346042276,1734654639085,-500.0,0.00021908,2]
[346042278,1734654639095,-500.0,0.00021908,2]
[346042279,1734654639104,-500.0,0.00021908,2]
[346042281,1734654639113,-500.0,0.00021908,2]
[346042283,1734654639123,-500.0,0.00021908,2]
[346042285,1734654639132,-500.0,0.00021908,2]
[346042287,1734654639141,-500.0,0.00021908,2]
[346042289,1734654639151,-500.0,0.00021908,2]
[346042291,1734654639160,-500.0,0.00021908,2]
[346042293,1734654639169,-500.0,0.00021908,2]
[346042295,1734654639178,-500.0,0.00021908,2]
[346042297,1734654639187,-500.0,0.00021908,2]
[346042299,1734654639196,-500.0,0.00021908,2]
[346042302,1734654639206,-500.0,0.00021908,2]
[346042305,1734654639227,-258.61567121,0.00021916,2]
[346042307,1734654639237,-194.58676118,0.00021916,2]
[346042309,1734654639247,-11958.1372838,0.00021917,2]
[346042315,1734654639307,-1504.09645731,0.00021917,2]
[346042459,1734654640701,-3372.09919446,0.00021917,2]
[346042747,1734654643630,-1464.5091889,0.00021917,2]
[346042915,1734654647346,-24259.72998318,0.00021917,2]
[346042916,1734654647358,-10320.000177,0.00021917,2]
[346042919,1734654929002,161.607989,0.00013973,2]
[346042925,1734655794960,300.0,0.000172,3]
[346042942,1734655832876,-300.0,0.00018837,2]
[346042943,1734655832886,-300.0,0.00018837,2]
[346042944,1734655832895,-5490.90218754,0.00018838,2]
[346042945,1734655832907,-2687.5684844,0.00018838,2]
[346042946,1734655832925,-16721.52932806,0.00018838,2]
[346042947,1734655832934,-1455.08352108,0.00018985,2]
[346042948,1734655832944,-17615.4621903,0.00019085,2]
[346042949,1734655832953,-169.319092,0.00019472,2]
[346042950,1734655832963,-1839.1852162,0.00019562,2]
[346042951,1734655832972,-9678.8050616,0.00019583,2]
[346042952,1734655832981,-9678.8050616,0.00019866,2]
[346042953,1734655832991,-9678.8050616,0.00020095,2]
[346042954,1734655833000,-811.552336,0.0002038,2]
[346042955,1734655833010,-188.520999,0.00020521,2]
[346042956,1734655833019,-420.0,0.00020536,2]
[346042958,1734655833029,-9678.8050616,0.00020546,2]
[346042960,1734655833039,-9678.8050616,0.00020707,2]
[346042962,1734655833049,-188.520999,0.00020712,2]
[346042964,1734655833058,-420.0,0.00020721,2]
[346042965,1734655833068,-611.762,0.0002082,2]
[346042966,1734655833078,-188.520999,0.00020904,2]
[346042967,1734655833088,-2740.0,0.00021,7]
[346042968,1734655833098,-18800.20577238,0.00021,2]
[346042969,1734655833108,-151.0,0.00021,2]
[346042970,1734655833118,-151.0,0.00021,2]
[346042971,1734655833127,-151.0,0.00021,2]
[346042972,1734655833136,-151.0,0.00021,2]
[346042973,1734655833146,-151.0,0.00021,2]
[346042974,1734655833156,-151.0,0.00021,2]
[346042975,1734655833169,-171.9889,0.00021,2]
[346042976,1734655833178,-171.9889,0.00021,2]
[346042977,1734655833188,-190.796467,0.00021,2]
[346042978,1734655833198,-190.796467,0.00021,2]
[346042979,1734655833208,-152.234324,0.00021,2]
[346042980,1734655833218,-1009.794991,0.00021,2]
[346042981,1734655833232,-1009.794991,0.00021,2]
[346042982,1734655833242,-151.0,0.00021,2]
[346042983,1734655833251,-599.66833324,0.00021,2]
[346042984,1734655833507,-173.53530076,0.00021,2]
[346042985,1734655833517,-773.203634,0.00021,2]
[346042986,1734655833527,-151.0,0.00021,2]
[346042987,1734655833536,-1476.972484,0.00021,2]
[346042988,1734655833546,-1476.972484,0.00021,2]
[346042989,1734655833555,-151.0,0.00021,2]
[346042990,1734655833565,-151.0,0.00021,2]
[346042991,1734655833575,-304.762642,0.00021,2]
[346042992,1734655833586,-191.73734,0.00021,2]
[346042993,1734655833596,-685.886435,0.00021,2]
[346042994,1734655833605,-304.762642,0.00021,2]
[346042995,1734655833615,-191.73734,0.00021,2]
[346042996,1734655833625,-685.886435,0.00021,2]
[346042997,1734655833634,-443.496125,0.00021,2]
[346042998,1734655833644,-443.496125,0.00021,2]
[346042999,1734655833654,-151.0,0.00021,2]
[346043000,1734655833663,-151.0,0.00021,2]
[346043001,1734655833673,-151.0,0.00021,2]
[346043002,1734655833682,-9678.8050616,0.00021041,2]
[346043003,1734655833692,-211.842966,0.00021095,2]
[346043004,1734655833701,-160.615838,0.00021095,2]
[346043005,1734655833711,-171.9889,0.00021095,2]
[346043006,1734655833721,-171.9889,0.00021095,2]
[346043007,1734655833730,-188.520999,0.00021096,2]
[346043008,1734655833740,-351.9620625,0.00021147,2]
[346043009,1734655833749,-9678.8050616,0.00021151,2]
[346043010,1734655833759,-188.520999,0.00021288,2]
[346043011,1734655833769,-151.0,0.00021424,2]
[346043012,1734655833778,-151.0,0.00021424,2]
[346043013,1734655833788,-151.0,0.00021424,2]
[346043014,1734655833797,-151.0,0.00021424,2]
[346043015,1734655833807,-151.0,0.00021424,2]
[346043016,1734655833816,-1476.972484,0.00021424,2]
[346043017,1734655833825,-1476.972484,0.00021424,2]
[346043018,1734655833835,-151.0,0.00021424,2]
[346043019,1734655833844,-151.0,0.00021424,2]
[346043020,1734655833854,-304.762642,0.00021424,2]
[346043021,1734655833864,-191.73734,0.00021424,2]
[346043022,1734655833873,-685.886435,0.00021424,2]
[346043023,1734655833884,-304.762642,0.00021424,2]
[346043024,1734655833894,-191.73734,0.00021424,2]
[346043025,1734655833904,-685.886435,0.00021424,2]
[346043026,1734655833913,-443.496125,0.00021424,2]
[346043027,1734655833923,-443.496125,0.00021424,2]
[346043028,1734655833932,-151.0,0.00021424,2]
[346043029,1734655833941,-50035.94110471,0.00021475,2]
[346043299,1734655839839,-300.0,0.000188,4]
[346043301,1734655839849,-151.0,0.00021,2]
[346043303,1734655839858,-151.0,0.00021,2]
[346043305,1734655839868,-186.74,0.00021,2]
[346043309,1734655839901,-223.215067,0.00021,2]
[346043311,1734655839911,-104.24716748,0.00021424,2]
[346043605,1734655842768,-409.955067,0.00021,2]
[346043607,1734655842778,-305.70789952,0.00021424,2]
[346043609,1734655842787,-409.955067,0.00021424,2]
[346043611,1734655842795,-1432.11437758,0.00021475,2]
[346043961,1734655846027,-15195.79190688,0.00021475,2]
[346043963,1734655846037,-12343.86033768,0.00021475,2]
[346043965,1734655846046,-190.796467,0.00021475,2]
[346043967,1734655846056,-190.796467,0.00021475,2]
[346043969,1734655846064,-1009.794991,0.00021475,2]
[346043971,1734655846074,-1009.794991,0.00021475,2]
[346043973,1734655846083,-151.0,0.00021475,2]
[346043975,1734655846092,-773.203634,0.00021475,2]
[346043977,1734655846101,-773.203634,0.00021475,2]
[346043979,1734655846110,-151.0,0.00021475,2]
[346043981,1734655846118,-297.085148,0.00021475,2]
[346043983,1734655846128,-188.520999,0.00021479,2]
[346043985,1734655846137,-9678.8050616,0.00021516,2]
[346043987,1734655846147,-151.0,0.00021671,2]
[346043989,1734655846156,-1476.972484,0.00021671,2]
[346043991,1734655846165,-1476.972484,0.00021671,2]
[346043993,1734655846176,-151.0,0.00021671,2]
[346043995,1734655846186,-151.0,0.00021671,2]
[346043997,1734655846195,-304.762642,0.00021671,2]
[346043999,1734655846204,-191.73734,0.00021671,2]
[346044001,1734655846213,-685.886435,0.00021671,2]
[346044003,1734655846222,-304.762642,0.00021671,2]
[346044005,1734655846235,-191.73734,0.00021671,2]
[346044007,1734655846243,-685.886435,0.00021671,2]
[346044009,1734655846253,-443.496125,0.00021671,2]
[346044011,1734655846262,-443.496125,0.00021671,2]
[346044013,1734655846270,-151.0,0.00021671,2]
[346044015,1734655846281,-151.0,0.00021671,2]
[346044018,1734655846290,-409.955067,0.00021671,2]
[346044020,1734655846300,-409.955067,0.00021671,2]
[346044022,1734655846313,-188.520999,0.00021671,2]
[346044024,1734655846322,-294.4311769,0.00021697,2]
[346044026,1734655846334,-9312.07964983,0.00021785,2]
[346044029,1734655846349,-366.72541227,0.00021785,2]
[346044031,1734655846358,-666.0,0.00021817,2]
[346044033,1734655846368,-151.0,0.00021817,2]
[346044035,1734655846378,-151.0,0.00021817,2]
[346044037,1734655846388,-151.0,0.00021817,2]
[346044039,1734655846397,-171.9889,0.00021825,2]
[346044041,1734655846406,-171.9889,0.00021825,2]
[346044043,1734655846416,-190.796467,0.00021825,2]
[346044045,1734655846426,-190.796467,0.00021825,2]
[346044047,1734655846435,-1009.794991,0.00021825,2]
[346044049,1734655846444,-108.90886272,0.00021825,2]
[346044276,1734655889892,300.0,0.000172,4]
[346044279,1734656086600,166.31998,0.00013973,2]
[346044284,1734656674450,300.0,0.000172,3]
[346044285,1734656686389,300.0,0.000172,4]
[346044287,1734656942530,158.286765,0.00013973,2]
[346044307,1734657032061,-864.828225,0.00018812,2]
[346044308,1734657032071,-185.28381,0.00019105,2]
[346044309,1734657032080,-169.202726,0.00019971,2]
[346044310,1734657032090,-300.0,0.0002,5]
[346044311,1734657032099,-300.0,0.0002,4]
[346044312,1734657032109,-300.0,0.0002,3]
[346044313,1734657032118,-312.41012367,0.0002,6]
[346044314,1734657032127,-151.89163046,0.0002,2]
[346044315,1734657032137,-658.899895,0.00020089,2]
[346044316,1734657032147,-160.0,0.00020153,3]
[346044317,1734657032157,-300.0,0.00020397,2]
[346044318,1734657032166,-300.0,0.00020397,2]
[346044319,1734657032176,-6604.48460417,0.00020398,2]
[346044320,1734657032187,-1646.46739743,0.00020398,2]
[346044321,1734657032197,-1146.3677454,0.00020405,2]
[346044322,1734657032206,-63.50530526,0.00020583,2]
[346044323,1734657032222,-88.49469474,0.00020583,2]
[346044324,1734657032231,-432.575794,0.00020712,2]
[346044325,1734657032241,-128.75734797,0.0002082,2]
[346044345,1734657037959,-474.40265203,0.0002082,2]
[346044347,1734657037968,-160.0,0.00020864,4]
[346044349,1734657037977,-192.0,0.00021046,2]
[346044351,1734657037986,-247.9353484,0.00021147,2]
[346044353,1734657037995,-482.36363478,0.00021331,2]
[346044355,1734657038004,-153.0,0.00021397,2]
[346044357,1734657038013,-155.63895682,0.00021397,2]
[346044359,1734657038025,-56.07444078,0.00021397,2]
[346044361,1734657038034,-213.8615731,0.00021397,2]
[346044363,1734657038043,-153.0,0.00021534,2]
[346044365,1734657038053,-431.8532086,0.00021534,2]
[346044367,1734657038062,-184.0,0.0002154,2]
[346044369,1734657038072,-160.0,0.00021575,5]
[346044371,1734657038081,-2649.024955,0.00021592,15]
[346044373,1734657038091,-300.0,0.000216,3]
[346044375,1734657038101,-300.0,0.000216,6]
[346044377,1734657038111,-300.0,0.000216,4]
[346044379,1734657038120,-300.0,0.000216,5]
[346044381,1734657038129,-158.286765,0.00021661,2]
[346044383,1734657038138,-175.704,0.00021671,2]
[346044385,1734657038147,-286.2839226,0.00021697,2]
[346044387,1734657038157,-188.520999,0.00021716,2]
[346044389,1734657038166,-1566.237696,0.000218,2]
[346044393,1734657038185,-314.74,0.000218,2]
[346044619,1734657040439,-378.052304,0.000218,2]
[346044621,1734657040448,-666.0,0.00021817,2]
[346044623,1734657040457,-4834.89222807,0.00021825,2]
[346044625,1734657040469,-165.10777193,0.00021825,2]
[346044627,1734657040478,-151.0,0.000219,4]
[346044629,1734657040488,-139.1320219,0.00021916,2]
[346044876,1734657043016,-341.07738321,0.00021916,2]
[346044878,1734657043025,-160.0,0.00021916,2]
[346044880,1734657043035,-23823.92261679,0.00021917,2]
[346045372,1734657784725,5800.0,0.00025,120]
[346045373,1734657829187,159.423078,0.00013973,2]
[346045579,1734658238384,-192.11,0.0002,2]
[346045581,1734658238393,-147.39,0.0002,2]
[346046010,1734658244223,-196.72576224,0.0002,2]
[346046011,1734658244233,-578.034,0.0002082,2]
[346046012,1734658244243,-329.449947,0.00020857,2]
[346046013,1734658244253,-175.704,0.00020999,2]
[346046014,1734658244262,-300.0,0.00020999,2]
[346046015,1734658244272,-300.0,0.00020999,2]
[346046016,1734658244281,-2959.29544106,0.00021,2]
[346046017,1734658244293,-597.95323649,0.00021,2]
[346046018,1734658244395,-39962.24367045,0.00021,2]
[346046020,1734658244404,-181.22819187,0.000214,2]
[346046022,1734658244413,-2977.0,0.000215,2]
[346046024,1734658244423,-181.2281918,0.00021667,2]
[346046025,1734658244432,-666.0,0.00021817,2]
[346046026,1734658244444,-21664.47988619,0.00021916,2]
[346046027,1734658244453,-6171.93016884,0.00021916,2]
[346046028,1734658244463,-320.1396034,0.00021916,2]
[346046029,1734658244473,-181.03096985,0.00021916,2]
[346046030,1734658244482,-458.29854691,0.00021916,2]
[346046031,1734658244492,-176.17433747,0.00021916,2]
[346046032,1734658244501,-500.0,0.00021916,2]
[346046033,1734658244511,-500.0,0.00021916,2]
[346046034,1734658244520,-500.0,0.00021916,2]
[346046035,1734658244529,-500.0,0.00021916,2]
[346046036,1734658244538,-500.0,0.00021916,2]
[346046037,1734658244547,-500.0,0.00021916,2]
[346046038,1734658244558,-417.45361442,0.00021916,2]
[346046039,1734658244568,-500.0,0.00021916,2]
[346046040,1734658244577,-500.0,0.00021916,2]
[346046041,1734658244587,-500.0,0.00021916,2]
[346046042,1734658244596,-500.0,0.00021916,2]
[346046043,1734658244605,-500.0,0.00021916,2]
[346046044,1734658244615,-500.0,0.00021916,2]
[346046045,1734658244625,-500.0,0.00021916,2]
[346046046,1734658244634,-500.0,0.00021916,2]
[346046047,1734658244643,-500.0,0.00021916,2]
[346046048,1734658244653,-500.0,0.00021916,2]
[346046049,1734658244663,-500.0,0.00021916,2]
[346046050,1734658244672,-500.0,0.00021916,2]
[346046051,1734658244681,-500.0,0.00021916,2]
[346046052,1734658244692,-500.0,0.00021916,2]
[346046053,1734658244701,-500.0,0.00021916,2]
[346046054,1734658244711,-500.0,0.00021916,2]
[346046055,1734658244721,-500.0,0.00021916,2]
[346046056,1734658244730,-422.08110647,0.00021916,2]
[346046057,1734658244740,-500.0,0.00021916,2]
[346046058,1734658244750,-500.0,0.00021916,2]
[346046059,1734658244760,-500.0,0.00021916,2]
[346046060,1734658244770,-500.0,0.00021916,2]
[346046061,1734658244779,-500.0,0.00021916,2]
[346046062,1734658244788,-500.0,0.00021916,2]
[346046063,1734658244797,-162.05371698,0.00021916,2]
[346046064,1734658244807,-181.66153152,0.00021916,2]
[346046065,1734658244816,-500.0,0.00021917,6]
[346046066,1734658244825,-500.0,0.00021917,6]
[346046067,1734658244835,-505.92288846,0.00021917,6]
[346046068,1734658244844,-504.21818801,0.00021917,6]
[346046069,1734658244854,-502.52219613,0.00021917,6]
[346046070,1734658244863,-500.0,0.00021917,6]
[346046071,1734658244872,-500.0,0.00021917,6]
[346046072,1734658244881,-151.0,0.00021917,2]
[346046073,1734658244891,-151.0,0.00021917,2]
[346046074,1734658244901,-151.0,0.00021917,2]
[346046075,1734658244911,-151.0,0.00021917,2]
[346046076,1734658244920,-151.0,0.00021917,2]
[346046077,1734658244930,-151.0,0.00021917,2]
[346046078,1734658244945,-151.0,0.00021917,2]
[346046079,1734658244955,-151.0,0.00021917,2]
[346046080,1734658244964,-500.0,0.00021917,6]
[346046081,1734658244974,-500.0,0.00021917,6]
[346046082,1734658244984,-500.0,0.00021917,6]
[346046083,1734658244994,-500.0,0.00021917,6]
[346046084,1734658245004,-500.0,0.00021917,6]
[346046085,1734658245014,-500.0,0.00021917,6]
[346046086,1734658245023,-500.0,0.00021917,6]
[346046087,1734658245033,-500.0,0.00021917,6]
[346046088,1734658245042,-500.0,0.00021917,6]
[346046089,1734658245052,-500.0,0.00021917,6]
[346046090,1734658245061,-500.0,0.00021917,2]
[346046091,1734658245071,-500.0,0.00021917,2]
[346046092,1734658245081,-500.0,0.00021917,2]
[346046093,1734658245091,-503.2769917,0.00021917,2]
[346046094,1734658245101,-501.11163246,0.00021917,6]
[346046095,1734658245110,-500.72647093,0.00021917,6]
[346046096,1734658245120,-500.0,0.00021917,6]
[346046097,1734658245129,-500.0,0.00021917,6]
[346046098,1734658245139,-500.0,0.00021917,6]
[346046099,1734658245148,-500.0,0.00021917,6]
[346046100,1734658245157,-500.0,0.00021917,6]
[346046101,1734658245167,-774.19,0.00021917,6]
[346046102,1734658245176,-500.0,0.00021917,6]
[346046103,1734658245185,-500.0,0.00021917,6]
[346046104,1734658245196,-500.0,0.00021917,6]
[346046105,1734658245206,-500.0,0.00021917,6]
[346046106,1734658245215,-519.59733515,0.00021917,6]
[346046107,1734658245224,-500.0,0.00021917,6]
[346046108,1734658245234,-500.0,0.00021917,6]
[346046109,1734658245243,-500.0,0.00021917,6]
[346046110,1734658245253,-507.65859623,0.00021917,6]
[346046111,1734658245262,-500.0,0.00021917,2]
[346046112,1734658245271,-500.0,0.00021917,6]
[346046113,1734658245281,-500.0,0.00021917,6]
[346046114,1734658245290,-500.0,0.00021917,6]
[346046115,1734658245299,-160.38898489,0.00021917,6]
[346046116,1734658245309,-500.0,0.00021917,6]
[346046117,1734658245318,-500.0,0.00021917,6]
[346046118,1734658245328,-504.26902223,0.00021917,6]
[346046119,1734658245337,-500.0,0.00021917,6]
[346046120,1734658245346,-500.0,0.00021917,6]
[346046121,1734658245355,-500.0,0.00021917,6]
[346046122,1734658245365,-500.0,0.00021917,6]
[346046123,1734658245374,-180.56943271,0.00021917,6]
[346046124,1734658245383,-500.0,0.00021917,6]
[346046125,1734658245392,-500.0,0.00021917,6]
[346046126,1734658245402,-500.0,0.00021917,6]
[346046127,1734658245411,-500.0,0.00021917,6]
[346046128,1734658245421,-502.81512637,0.00021917,6]
[346046129,1734658245430,-500.0,0.00021917,6]
[346046130,1734658245439,-500.0,0.00021917,6]
[346046131,1734658245449,-500.0,0.00021917,6]
[346046132,1734658245458,-500.0,0.00021917,6]
[346046133,1734658245468,-500.0,0.00021917,6]
[346046134,1734658245477,-500.0,0.00021917,6]
[346046135,1734658245486,-211.91567361,0.00021917,6]
[346046136,1734658245495,-500.0,0.00021917,6]
[346046137,1734658245504,-500.0,0.00021917,6]
[346046138,1734658245514,-500.0,0.00021917,6]
[346046139,1734658245523,-206.74352956,0.00021917,6]
[346046140,1734658245533,-500.0,0.00021917,6]
[346046141,1734658245542,-500.0,0.00021917,6]
[346046142,1734658245551,-500.0,0.00021917,6]
[346046143,1734658245560,-500.0,0.00021917,6]
[346046144,1734658245570,-500.0,0.00021917,6]
[346046145,1734658245579,-500.0,0.00021917,6]
[346046146,1734658245590,-500.0,0.00021917,6]
[346046147,1734658245599,-200.0,0.00021917,6]
[346046148,1734658245608,-500.0,0.00021917,6]